fUSD/lending_fUSD_20240511
["ID","MTS","AMOUNT","RATE_DAILY","PERIOD"]
[326806267,1715387447988,-156.896475,0.00019178,2]
[326806268,1715387447998,-156.896475,0.00019178,2]
[326806269,1715387448007,-20662.38454956,0.00019185,2]
[326806270,1715387448017,-124968.38641666,0.00019185,2]
[326806271,1715387448027,-151.0,0.00019185,2]
[326806272,1715387448036,-151.0,0.00019185,2]
[326806273,1715387448045,-270.423056,0.00019185,2]
[326806274,1715387448054,-151.0,0.00019185,2]
[326806275,1715387448064,-151.0,0.00019185,2]
[326806276,1715387448073,-151.0,0.00019185,2]
[326806277,1715387448083,-2385.772382,0.00019185,2]
[326806278,1715387448092,-154.846977,0.00019185,2]
[326806279,1715387448101,-151.0,0.00019185,2]
[326806280,1715387448111,-2385.772382,0.00019185,2]
[326806281,1715387448120,-151.0,0.00019185,2]
[326806282,1715387448134,-151.0,0.00019185,2]
[326806283,1715387448143,-185.948844,0.00019185,2]
[326806284,1715387448152,-1079.5096929,0.000192,2]
[326806285,1715387448163,-1606.73,0.000192,2]
[326806286,1715387448172,-1681.81,0.000192,2]
[326806287,1715387448181,-1489.75,0.000192,2]
[326806288,1715387448191,-151.0,0.00019339,2]
[326806289,1715387448200,-151.0,0.00019339,2]
[326806290,1715387448212,-151.0,0.00019339,2]
[326806291,1715387448222,-150.0,0.000195,2]
[326806292,1715387448231,-150.0,0.000195,2]
[326806293,1715387448240,-265.29272201,0.000195,2]
[326806294,1715387448250,-421.0,0.000195,2]
[326806295,1715387448260,-611.0,0.000195,2]
[326806296,1715387448268,-809.0,0.000195,2]
[326806297,1715387448278,-438.0,0.000195,2]
[326806298,1715387448287,-162.0,0.000195,2]
[326806299,1715387448296,-2412.0,0.000195,2]
[326806300,1715387448306,-1479.0,0.000195,2]
[326806301,1715387448315,-150.0,0.000195,2]
[326806302,1715387448324,-150.0,0.000195,2]
[326806303,1715387448333,-215.0,0.000195,2]
[326806304,1715387448342,-444.0,0.000195,2]
[326806305,1715387448351,-1138.0,0.000195,2]
[326806306,1715387448360,-1645.0,0.000195,2]
[326806307,1715387448370,-3155.0,0.000195,2]
[326806308,1715387448379,-1000.0,0.000195,2]
[326806309,1715387448388,-5747.0,0.000195,2]
[326806310,1715387448397,-2157.0,0.000195,2]
[326806311,1715387448407,-972.0,0.000195,2]
[326806312,1715387448417,-1398.0,0.000195,2]
[326806313,1715387448426,-5909.0,0.000195,2]
[326806314,1715387448435,-31081.97495617,0.000195,2]
[326806315,1715387448469,-6733.02504383,0.000195,2]
[326806316,1715387448477,-150.5,0.0001956,15]
[326806317,1715387448487,-1532.0,0.0001957,15]
[326806318,1715387448496,-150.5,0.0001957,15]
[326806319,1715387448506,-1532.0,0.0001958,15]
[326806320,1715387448515,-150.5,0.0001958,15]
[326806321,1715387448525,-1532.0,0.0001959,15]
[326806322,1715387448535,-1363.73863618,0.0001967,15]
[326806323,1715387448554,-5.26136382,0.0001967,15]
[326806324,1715387448564,-449.97966619,0.0001968,15]
[326806325,1715387448576,-549.80271798,0.0001968,15]
[326806326,1715387448587,-369.21761583,0.0001968,15]
[326806327,1715387448597,-1369.0,0.0001969,15]
[326806328,1715387448606,-1650.21197094,0.00019693,2]
[326806329,1715387448618,-604.42127284,0.00019693,2]
[326806330,1715387448629,-366.68861833,0.00019693,2]
[326806331,1715387448640,-891.72914528,0.00019693,2]
[326806332,1715387448652,-1962.53130861,0.00019693,2]
[326806333,1715387448663,-269.881938,0.00019693,2]
[326806334,1715387448672,-5475.582316,0.00019693,2]
[326806335,1715387448682,-151.0,0.00019693,2]
[326806336,1715387448691,-331.32066,0.00019693,2]
[326806337,1715387448699,-151.0,0.00019693,2]
[326806338,1715387448708,-331.32066,0.00019693,2]
[326806339,1715387448718,-151.0,0.00019693,2]
[326806340,1715387448727,-151.0,0.00019693,2]
[326806341,1715387448736,-95.5494581,0.00019693,2]
[326806342,1715387448747,-55.4505419,0.00019693,2]
[326806343,1715387448757,-156.896475,0.00019693,2]
[326806344,1715387448766,-151.0,0.00019693,2]
[326806345,1715387448775,-156.896475,0.00019693,2]
[326806346,1715387448784,-600.9778659,0.00019693,2]
[326806347,1715387448795,-257.59616578,0.00019693,2]
[326806348,1715387449471,-188.03404075,0.00012989,2]
[326806349,1715387449481,-1096.91662928,0.000165,2]
[326806350,1715387449505,-925.50594997,0.000165,2]
[326806351,1715387449518,-272.57742075,0.000165,2]
[326806352,1715387449527,-154.57257725,0.0001778,2]
[326806353,1715387449538,-845.42742275,0.0001778,2]
[326806354,1715387449546,-657.38836999,0.000195,2]
[326806355,1715387449557,-1637.61163001,0.000195,2]
[326806356,1715387449567,-16941.79680048,0.00019693,2]
[326806357,1715387449576,-150.5,0.000197,15]
[326806358,1715387449585,-150.5,0.0001971,15]
[326806359,1715387449594,-150.5,0.0001972,15]
[326806360,1715387449603,-610.493671,0.00019726,2]
[326806361,1715387449612,-1000.0,0.0001984,2]
[326806362,1715387449702,-500.0,0.0001984,2]
[326806363,1715387449713,-10000.0,0.000199,2]
[326806364,1715387449722,-151.0,0.000199,2]
[326806365,1715387449731,-151.0,0.000199,2]
[326806366,1715387449740,-314.76686,0.000199,2]
[326806367,1715387449748,-151.0,0.000199,2]
[326806368,1715387449757,-314.76686,0.000199,2]
[326806369,1715387449766,-151.0,0.000199,2]
[326806370,1715387449775,-184.68572438,0.000199,2]
[326806371,1715387449784,-184.68572426,0.000199,2]
[326806372,1715387449793,-184.68572426,0.000199,2]
[326806373,1715387449802,-184.68572426,0.000199,2]
[326806374,1715387449811,-184.68572426,0.000199,2]
[326806375,1715387449820,-184.68572426,0.000199,2]
[326806376,1715387449830,-184.68572426,0.000199,2]
[326806377,1715387449838,-184.68572426,0.000199,2]
[326806378,1715387449848,-184.68572426,0.000199,2]
[326806379,1715387449858,-184.68572426,0.000199,2]
[326806380,1715387449866,-184.68572426,0.000199,2]
[326806381,1715387449875,-184.68572426,0.000199,2]
[326806382,1715387449884,-184.68572426,0.000199,2]
[326806383,1715387449893,-184.68572426,0.000199,2]
[326806384,1715387449902,-184.68572426,0.000199,2]
[326806385,1715387449912,-184.68572426,0.000199,2]
[326806386,1715387449922,-184.68572426,0.000199,2]
[326806387,1715387449932,-184.68572426,0.000199,2]
[326806388,1715387449941,-184.68572426,0.000199,2]
[326806389,1715387449950,-184.68572426,0.000199,2]
[326806390,1715387449959,-184.68572426,0.000199,2]
[326806391,1715387449968,-184.68572426,0.000199,2]
[326806392,1715387449977,-184.68572426,0.000199,2]
[326806393,1715387449987,-184.68572426,0.000199,2]
[326806394,1715387449996,-184.68572426,0.000199,2]
[326806395,1715387450006,-184.68572426,0.000199,2]
[326806396,1715387450016,-184.68572426,0.000199,2]
[326806397,1715387450026,-184.68572426,0.000199,2]
[326806398,1715387450035,-184.68572426,0.000199,2]
[326806399,1715387450044,-184.68572426,0.000199,2]
[326806400,1715387450053,-184.68572426,0.000199,2]
[326806401,1715387450063,-184.68572426,0.000199,2]
[326806402,1715387450072,-184.68572426,0.000199,2]
[326806403,1715387450081,-184.68572426,0.000199,2]
[326806404,1715387450091,-184.68572426,0.000199,2]
[326806405,1715387450100,-184.68572426,0.000199,2]
[326806406,1715387450109,-184.68572426,0.000199,2]
[326806407,1715387450118,-184.68572426,0.000199,2]
[326806408,1715387450127,-351.31,0.00019922,2]
[326806409,1715387450140,-351.31,0.00019922,2]
[326806410,1715387450149,-176.48,0.00019922,2]
[326806411,1715387450158,-150.0,0.00019922,2]
[326806412,1715387450168,-351.31,0.00019922,2]
[326806413,1715387450179,-150.0,0.00019922,2]
[326806414,1715387450187,-150.0,0.00019922,2]
[326806415,1715387450196,-150.0,0.00019922,2]
[326806416,1715387450207,-351.31,0.00019922,2]
[326806417,1715387450216,-150.0,0.00019922,2]
[326806418,1715387450225,-150.0,0.00019922,2]
[326806419,1715387450234,-523.32,0.00019922,2]
[326806420,1715387450243,-351.31,0.00019922,2]
[326806421,1715387450252,-150.0,0.00019922,2]
[326806422,1715387450260,-292.52,0.00019922,2]
[326806423,1715387450269,-523.32,0.00019922,2]
[326806424,1715387450278,-523.32,0.00019922,2]
[326806425,1715387450287,-150.0,0.00019922,2]
[326806426,1715387450297,-523.32,0.00019922,2]
[326806427,1715387450306,-163.24,0.00019922,2]
[326806428,1715387450315,-150.0,0.00019922,2]
[326806429,1715387450324,-150.0,0.00019922,2]
[326806430,1715387450333,-163.24,0.00019922,2]
[326806431,1715387450342,-351.31,0.00019922,2]
[326806432,1715387450350,-523.32,0.00019922,2]
[326806433,1715387450360,-150.0,0.00019922,2]
[326806434,1715387450368,-351.31,0.00019922,2]
[326806435,1715387450377,-163.24,0.00019922,2]
[326806436,1715387450386,-351.31,0.00019922,2]
[326806437,1715387450395,-150.0,0.00019922,2]
[326806438,1715387450404,-163.24,0.00019922,2]
[326806439,1715387450413,-163.24,0.00019922,2]
[326806440,1715387450422,-523.32,0.00019922,2]
[326806441,1715387450431,-523.32,0.00019922,2]
[326806442,1715387450440,-163.24,0.00019922,2]
[326806443,1715387450450,-351.31,0.00019922,2]
[326806444,1715387450459,-523.32,0.00019922,2]
[326806445,1715387450467,-163.24,0.00019922,2]
[326806446,1715387450476,-163.24,0.00019922,2]
[326806447,1715387450486,-523.32,0.00019922,2]
[326806448,1715387450494,-163.24,0.00019922,2]
[326806449,1715387450503,-351.31,0.00019922,2]
[326806450,1715387450512,-151.88,0.00019922,2]
[326806451,1715387450521,-351.31,0.00019922,2]
[326806452,1715387450530,-163.24,0.00019922,2]
[326806453,1715387450539,-420.16,0.00019922,2]
[326806454,1715387450548,-523.32,0.00019922,2]
[326806455,1715387450557,-351.31,0.00019922,2]
[326806456,1715387450566,-150.0,0.00019922,2]
[326806457,1715387450575,-259.88,0.00019922,2]
[326806458,1715387450585,-278.3,0.00019922,2]
[326806459,1715387450594,-151.0,0.00019922,2]
[326806460,1715387450604,-1086.16391134,0.0001994,2]
[326806461,1715387450613,-184.68572426,0.00019983,2]
[326806462,1715387450623,-234.5,0.0001999,15]
[326806463,1715387450632,-202.81504794,0.0001999,7]
[326806464,1715387450644,-358.55644255,0.0002,2]
[326806465,1715387450654,-1261.0570465,0.0002,2]
[326806466,1715387450665,-155.0,0.0002,2]
[326806467,1715387450674,-301.09927689,0.0002,2]
[326806468,1715387450683,-861.5014495,0.0002,2]
[326806469,1715387450694,-5181.29379208,0.0002,2]
[326806470,1715387450704,-155.0,0.0002,2]
[326806471,1715387450713,-155.0,0.0002,2]
[326806472,1715387450724,-226655.28597294,0.0002,2]
[326806473,1715387450736,-54714.49347044,0.0002,2]
[326806474,1715387450792,-2639.96312207,0.0002,2]
[326806475,1715387450807,-35060.93913681,0.0002,2]
[326806476,1715387450818,-17067.11893524,0.0002,2]
[326806477,1715387450829,-257.54460634,0.0002,2]
[326806478,1715387450846,-344.10978337,0.0002,2]
[326806479,1715387451470,-503.99410468,0.0002,2]
[326806480,1715387451482,-117947.09522609,0.0002,2]
[326806481,1715387452636,-150.0,0.00012972,2]
[326806482,1715387452647,-723.76431563,0.00015565,2]
[326806483,1715387452659,-581.0,0.00015565,2]
[326806484,1715387452672,-2287.15044994,0.00015565,2]
[326806485,1715387452695,-6408.08523443,0.00015565,2]
[326806486,1715387452705,-1059.0,0.000165,2]
[326806487,1715387452714,-150.0,0.00017746,2]
[326806488,1715387452724,-1059.0,0.000195,2]
[326806489,1715387452734,-6180.60572435,0.0002,2]
[326806490,1715387452883,-92227.66707851,0.0002,2]
[326806491,1715387452915,-155.0,0.00012758,2]
[326806492,1715387452925,-5973.1,0.0002,2]
[326806493,1715387452937,-6293.32144232,0.0002,2]
[326806494,1715387452948,-15441.27766625,0.0002,2]
[326806495,1715387452959,-10626.67261,0.0002,2]
[326806496,1715387452971,-15244.77312,0.0002,2]
[326806497,1715387452982,-998.44609484,0.0002,2]
[326806498,1715387452994,-2089.86470127,0.0002,2]
[326806502,1715387997999,266.51338712,0.00011695,2]
[326806505,1715388294836,155.0,0.00011695,2]
[326806506,1715388308714,155.18883555,0.00011695,2]
[326806508,1715388430173,633.68,0.00011699,2]
[326806519,1715388631628,-155.0,0.00011738,2]
[326806520,1715388631638,-1117.24,0.00011738,2]
[326806521,1715388631699,-141.54398257,0.00011738,2]
[326806522,1715388631709,-289.64114711,0.00011739,2]
[326806523,1715388631884,-12254.59818704,0.00011739,2]
[326806524,1715388631895,-2049.42770371,0.00011739,2]
[326806525,1715388631906,-700.0,0.00011739,2]
[326806526,1715388631917,-1552.94140722,0.00011739,2]
[326806551,1715388637476,-1000.0,0.00011741,2]
[326806552,1715388637486,-150.0,0.0001178,2]
[326806553,1715388637496,-150.0,0.0001178,2]
[326806554,1715388637507,-1200.0,0.00011781,2]
[326806555,1715388637541,-489.7517793,0.00011781,2]
[326806556,1715388637621,-12205.67296353,0.00011781,2]
[326806557,1715388637633,-3013.6632838,0.00011781,2]
[326806558,1715388637734,-4505.10197337,0.00011781,2]
[326806559,1715388637744,-150.0,0.00011781,2]
[326806560,1715388637753,-578.0799,0.00011798,2]
[326806561,1715388637762,-1748.4922,0.00011798,2]
[326806562,1715388637772,-210.3943,0.00011798,2]
[326806563,1715388637781,-250.0,0.0001181,2]
[326806564,1715388637790,-61868.53371694,0.00011898,2]
[326806565,1715388637800,-1845.153,0.00011898,2]
[326806566,1715388637809,-7522.88420071,0.00011899,2]
[326806567,1715388637820,-55932.69825871,0.00011899,2]
[326806568,1715388637829,-296.00404057,0.00011899,2]
[326806569,1715388637838,-154.87,0.00011977,2]
[326806570,1715388637848,-150.99,0.00011977,2]
[326806572,1715388637857,-154.87,0.00012601,2]
[326806573,1715388637867,-1580.384,0.00012695,2]
[326806574,1715388637876,-2500.0,0.0001279,2]
[326806575,1715388637886,-7500.0,0.0001288,2]
[326806576,1715388637895,-8900.18541608,0.0001289,2]
[326806577,1715388637904,-181.79427856,0.0001289,2]
[326806578,1715388637916,-195.01691609,0.0001289,2]
[326806579,1715388637925,-893.57502086,0.0001289,2]
[326806580,1715388637934,-314.45856194,0.0001289,2]
[326806581,1715388637944,-176.66275397,0.0001289,2]
[326806582,1715388637954,-893.57502086,0.00012895,2]
[326806583,1715388637963,-314.45856193,0.00012895,2]
[326806584,1715388637973,-1398.59305501,0.00012898,2]
[326806585,1715388637984,-1000.0,0.00012898,2]
[326806586,1715388637993,-208.39387408,0.00012898,2]
[326806587,1715388638003,-447.20482152,0.00012898,2]
[326806588,1715388638012,-31879.18185,0.00012899,2]
[326806589,1715388638022,-1489.49213559,0.00012899,2]
[326806590,1715388638031,-114992.15927673,0.000129,2]
[326806591,1715388638041,-8854.25246581,0.000129,2]
[326806592,1715388638050,-893.57502086,0.000129,2]
[326806593,1715388638060,-314.45856193,0.000129,2]
[326806594,1715388638069,-25841.9814,0.00012905,2]
[326806595,1715388638078,-178.3699235,0.0001297,2]
[326806596,1715388638088,-103233.14213296,0.00012979,2]
[326806597,1715388638097,-1338884.60013454,0.0001298,2]
[326806598,1715388638114,-412.62149716,0.0001298,2]
[326806599,1715388638134,-35013.99902044,0.0001298,2]
[326806600,1715388638145,-913.57159141,0.0001298,2]
[326806601,1715388638158,-3094.32703647,0.0001298,2]
[326806606,1715388639653,-123004.5687244,0.0001298,2]
[326806607,1715388640056,-1513.607485,0.0001298,2]
[326806619,1715388643073,-219432.76621061,0.0001298,2]
[326806620,1715388643094,-2564.32088027,0.0001298,2]
[326806621,1715388645628,-655.82645492,0.00012979,2]
[326806622,1715388645638,-9461.51241994,0.0001298,2]
[326806623,1715388645780,-39753.64469531,0.0001298,2]
[326806624,1715388650880,182.85,0.00010959,2]
[326806625,1715388677709,158.5064266,0.00011679,2]
[326806626,1715388714247,224.89621255,0.00010511,2]
[326806628,1715388863605,12719.9318,0.00011679,2]
[326806631,1715389370209,10095.29499442,0.00025,120]
[326806632,1715389371307,2667.9455,0.00011699,2]
[326806633,1715389391241,800.0,0.00011558,2]
[326806634,1715389611198,150.48,0.000116,2]
[326806635,1715389664420,12487.6576,0.00011699,2]
[326806636,1715389707302,250.0,0.00011555,2]
[326806637,1715389718135,158.50642657,0.00011627,2]
[326806639,1715389779540,400.0,0.00011482,2]
[326806641,1715389832024,-1271.28995696,0.00011718,2]
[326806642,1715389832034,-655.82645492,0.00011719,2]
[326806643,1715389832043,-431.0045216,0.0001172,2]
[326806644,1715389832052,-1960.43919176,0.00011723,2]
[326806645,1715389832063,-1185.25112768,0.00011723,2]
[326806646,1715389832074,-16329.13268647,0.00011723,2]
[326806647,1715389832083,-19474.82300591,0.00011723,2]
[326806648,1715389832093,-19474.82300591,0.00011723,2]
[326806649,1715389832102,-10647.25573483,0.00011725,2]
[326806650,1715389832113,-576.8430713,0.00011725,2]
[326806651,1715389832189,-484.32,0.00011725,2]
[326806652,1715389832226,-6501.98717225,0.00011725,2]
[326806653,1715389832238,-15067.000015,0.00011725,2]
[326806654,1715389832257,-4070.8310828,0.00011725,2]
[326806655,1715389832267,-150.0,0.00011735,2]
[326806656,1715389832275,-150.0,0.00011735,2]
[326806657,1715389832285,-372.63206345,0.00011735,2]
[326806658,1715389832296,-517.9614323,0.00011735,2]
[326806659,1715389832307,-803.1102161,0.00011735,2]
[326806660,1715389832318,-665.08469825,0.00011735,2]
[326806661,1715389832329,-3913.38875614,0.00011735,2]
[326806662,1715389832341,-685.05424735,0.00011735,2]
[326806664,1715389832368,-1051.35894337,0.00011735,2]
[326806666,1715389832377,-372.32620498,0.00011736,2]
[326806668,1715389832389,-166.62737141,0.00011736,2]
[326806670,1715389832398,-329.17512859,0.00011736,2]
[326806715,1715389837752,-1636.7040872,0.00011717,2]
[326806716,1715389837765,-380.40189947,0.00011717,2]
[326806717,1715389837840,-1069.61215848,0.00011717,2]
[326806718,1715389837850,-256.20004694,0.00011736,2]
[326806719,1715389837862,-565.33979695,0.00011736,2]
[326806720,1715389837871,-293.26472206,0.0001175,2]
[326806721,1715389837885,-533.41951035,0.0001175,2]
[326806722,1715389837899,-1000.0,0.00011757,2]
[326806723,1715389837908,-364.09927495,0.00011797,2]
[326806724,1715389837918,-876.72028262,0.00011799,2]
[326806725,1715389837935,-2022.52795283,0.00011799,2]
[326806726,1715389838030,-2022.6949102,0.00011799,2]
[326806727,1715389838041,-729.82228752,0.00011799,2]
[326806728,1715389838052,-28663.21010576,0.00011799,2]
[326806745,1715389839937,-853.79812441,0.00011799,2]
[326806746,1715389839949,-922.8938064,0.00011799,2]
[326806747,1715389839961,-252.43701998,0.00011799,2]
[326806748,1715389839973,-1110.62532467,0.00011799,2]
[326806749,1715389839985,-46729.91568561,0.00011799,2]
[326806750,1715389839994,-200.0,0.00011811,2]
[326806751,1715389840004,-158.50642657,0.00011978,2]
[326806752,1715389840013,-1225.0,0.00012,2]
[326806753,1715389840023,-900.0,0.000122,4]
[326806754,1715389840033,-1900.0,0.000123,4]
[326806755,1715389840042,-158.50642657,0.00012329,2]
[326806756,1715389840052,-2800.0,0.000124,4]
[326806757,1715389840061,-3800.0,0.000125,4]
[326806758,1715389840070,-4800.0,0.000126,4]
[326806759,1715389840080,-158.50642657,0.0001268,2]
[326806760,1715389840089,-900.0,0.000127,4]
[326806761,1715389840098,-81649.16298829,0.0001278,2]
[326806762,1715389840131,-4896.92,0.0001278,2]
[326806763,1715389840142,-822.63766305,0.0001278,2]
[326806764,1715389840153,-1272.84897139,0.0001278,2]
[326806765,1715389840164,-659.94979241,0.0001278,2]
[326806766,1715389840175,-45009.6069027,0.0001278,2]
[326806767,1715389840195,-696.2,0.0001278,2]
[326806768,1715389840206,-94613.55838216,0.0001278,2]
[326806769,1715389840215,-2279.5534,0.0001278,2]
[326806770,1715389840225,-390.00145948,0.0001278,2]
[326806771,1715389840239,-7500.0,0.0001278,2]
[326806772,1715389840249,-900.0,0.000128,4]
[326806773,1715389840258,-390.00145948,0.0001281,2]
[326806774,1715389840268,-390.00145948,0.0001284,2]
[326806775,1715389840278,-48852.40068515,0.0001286,2]
[326806776,1715389840287,-390.00145948,0.0001287,2]
[326806777,1715389840296,-136213.519,0.0001288,2]
[326806778,1715389840306,-177.10224627,0.0001288,2]
[326806779,1715389840315,-10194.60484248,0.0001288,2]
[326806780,1715389840325,-2170.66068712,0.0001288,2]
[326806781,1715389840334,-10000.0,0.000129,2]
[326806782,1715389840720,-1000.0,0.000129,2]
[326806783,1715389840752,-390.00145948,0.000129,2]
[326806784,1715389840761,-900.0,0.000129,4]
[326806785,1715389840770,-213.12181019,0.000129,2]
[326806786,1715389840779,-9579.77170832,0.000129,2]
[326806787,1715389840788,-1042.76036452,0.000129,2]
[326806788,1715389840797,-9579.7717083,0.00012902,2]
[326806789,1715389840806,-1042.76036452,0.00012902,2]
[326806790,1715389840815,-213.12181018,0.00012903,2]
[326806791,1715389840824,-9579.7717083,0.00012903,2]
[326806792,1715389840833,-1042.76036452,0.00012903,2]
[326806793,1715389840842,-400.0,0.00012917,2]
[326806794,1715389840852,-269.95645827,0.00012978,2]
[326806795,1715389840861,-3055.51863775,0.00012978,2]
[326806796,1715389840870,-227.47809229,0.00012978,2]
[326806797,1715389840879,-1997.08236472,0.00012978,2]
[326806798,1715389840893,-155.0,0.00012978,2]
[326806799,1715389840903,-14145.49538079,0.00012979,2]
[326806800,1715389840912,-1113.92024275,0.0001298,2]
[326806801,1715389841446,-5299.5959166,0.0001298,2]
[326806802,1715389841459,-662.47809905,0.0001298,2]
[326806803,1715389842212,-7058.3,0.0001298,2]
[326806809,1715389842835,-118436.46183706,0.0001298,2]
[326806810,1715389842864,-646.38980015,0.0001298,2]
[326806811,1715389842875,-22908.31069795,0.0001298,2]
[326806812,1715389842890,-662.38136993,0.0001298,2]
[326806813,1715389842903,-1104.6360013,0.0001298,2]
[326806814,1715389842919,-385010.04912333,0.0001298,2]
[326806815,1715389842930,-5970.77051,0.0001298,2]
[326806816,1715389842939,-7529.48056012,0.0001298,2]
[326806817,1715389842948,-2853.3794336,0.00012981,2]
[326806818,1715389842957,-2828.28859458,0.00012981,2]
[326806819,1715389842971,-61.68712052,0.00012981,2]
[326806820,1715389842981,-12183.3638478,0.00012981,2]
[326806821,1715389842990,-151.51,0.0001299,2]
[326806822,1715389842999,-151.51,0.0001299,2]
[326806823,1715389843008,-151.51,0.0001299,2]
[326806824,1715389843017,-151.51,0.0001299,2]
[326806825,1715389843027,-151.51,0.0001299,2]
[326806826,1715389843036,-151.51,0.0001299,2]
[326806827,1715389843045,-151.51,0.0001299,2]
[326806828,1715389843055,-151.51,0.0001299,2]
[326806829,1715389843064,-151.51,0.0001299,2]
[326806830,1715389843073,-151.51,0.0001299,2]
[326806831,1715389843082,-151.51,0.0001299,2]
[326806832,1715389843091,-151.51,0.0001299,2]
[326806833,1715389843100,-151.51,0.0001299,2]
[326806834,1715389843110,-151.51,0.0001299,2]
[326806835,1715389843119,-151.51,0.0001299,2]
[326806836,1715389843128,-151.51,0.0001299,2]
[326806837,1715389843137,-151.51,0.0001299,2]
[326806838,1715389843146,-151.51,0.0001299,2]
[326806839,1715389843155,-151.51,0.0001299,2]
[326806840,1715389843166,-151.51,0.0001299,2]
[326806841,1715389843177,-2749.6201815,0.00012991,2]
[326806842,1715389843186,-2785.8419222,0.00012991,2]
[326806843,1715389843197,-11704.3785784,0.00012991,2]
[326806844,1715389843206,-188.75172265,0.00013,2]
[326806845,1715389843215,-38801.934079,0.00013,2]
[326806846,1715389843226,-335.5461383,0.00013,2]
[326806847,1715389843237,-1838.75385252,0.00013,2]
[326806848,1715389843249,-338.7238319,0.00013,2]
[326806849,1715389843260,-690.65408175,0.00013,2]
[326806850,1715389843272,-1883.65102,0.00013,2]
[326806851,1715389843287,-35333.77735331,0.00013,2]
[326806852,1715389843427,-2559007.2041419,0.00013,2]
[326806856,1715389845964,-328.92175,0.0001285,2]
[326806857,1715389845976,-297.15936507,0.00013,2]
[326806858,1715389846611,-27750.37637363,0.00013,2]
[326806859,1715389846623,-816.90620312,0.00013,2]
[326806860,1715389846665,-6231.59735195,0.00013,2]
[326806861,1715389846679,-1309.99765462,0.00013,2]
[326806862,1715389847052,-176445.19409591,0.00013,2]
[326806863,1715389847064,-2187.02647135,0.00013,2]
[326806867,1715390836119,-302.15867583,0.00011893,2]
[326806868,1715390836140,-655.82645492,0.00011894,2]
[326806869,1715390836161,-158.50642657,0.00011897,2]
[326806870,1715390836183,-196.25513631,0.00012,2]
[326806871,1715390836208,-298.96,0.00012086,2]
[326806872,1715390836231,-250.0,0.00012086,2]
[326806873,1715390836256,-7085.19750952,0.00012087,2]
[326806874,1715390836280,-160.0,0.00012319,2]
[326806875,1715390836302,-155.0,0.00012677,2]
[326806876,1715390836322,-1000.0,0.00012678,2]
[326806877,1715390836343,-7318.36671331,0.00012679,2]
[326806878,1715390836380,-3255.40735388,0.00012679,2]
[326806879,1715390839122,-314.45847106,0.00012679,2]
[326806881,1715390974079,-155.0,0.00012547,2]
[326806882,1715390974098,-655.82645492,0.00012547,2]
[326806883,1715390974118,-1000.0,0.00012548,2]
[326806884,1715390974137,-551.07977649,0.00012678,2]
[326806885,1715390974156,-243.39748058,0.00012678,2]
[326806886,1715390974177,-33798.92891742,0.00012679,2]
[326806887,1715390974196,-7645.29237059,0.0001268,2]
[326806898,1715391032394,-5821.89482616,0.00012547,2]
[326806899,1715391032407,-338.70707334,0.00012547,2]
[326806900,1715391032421,-993.21587729,0.00012547,2]
[326806901,1715391032433,-258.76851609,0.00012547,2]
[326806904,1715391038187,-155.0,0.00012546,2]
[326806906,1715391038198,-976.38468957,0.00012547,2]
[326806910,1715391038207,-1000.0,0.00012679,2]
[326806912,1715391038216,-3991.65289885,0.0001268,2]
[326806957,1715391038955,-608.16,0.0001268,2]
[326806966,1715391039446,-61912.91323056,0.0001268,2]
[326806967,1715391039456,-1235.64839102,0.0001268,2]
[326806968,1715391039472,-935.6277,0.000127,2]
[326806969,1715391039482,-1000.0,0.000127,2]
[326806970,1715391039492,-1045.33330329,0.0001274,2]
[326806971,1715391039502,-294.99616523,0.00012761,2]
[326806972,1715391039512,-655.82645492,0.00012798,2]